Cogmind - Beta 15 @@@ ROGUE MODE // 2025.08.15 @ 09:48:39 Player: beans Result: Destroyed by 9W-VDB(R) with Subdweller Machine Gun Performance ------------- Evolutions (0) 0 Regions Visited (3) 600 Robots Destroyed (13) 65 Value Destroyed (305) 305 Prototype IDs (0) 0 Alien Tech Used (0) 0 Bonus (0) 0 TOTAL SCORE: 970 Bonus ------- None Cogmind --------- Core Integrity 0/250 Matter 159/300 Energy 100/100 System Corruption 0% Temperature Cool (0) Movement Core (150) Ox2 Location -10/Subcaves Parts ------- > --- POWER (1) -------- (None) > --- PROPULSION (2) --- (None) > --- UTILITY (2) ------ (None) > --- WEAPON (2) ------- Heavy Battle Rifle Battle Cannon > --- INVENTORY (5) ---- Medium Laser Peak State ------------ > --- POWER ------------ (None) > --- PROPULSION ------- (None) > --- UTILITY ---------- Scrap Shield > --- WEAPON ----------- Heavy Battle Rifle Battle Cannon > --- INVENTORY -------- Medium Laser [Rating: 10] Favorites ----------- Power None Propulsion None Utility Scrap Shield Protection Scrap Shield Weapon Heavy Battle Rifle Energy Gun Medium Laser Ballistic Gun Heavy Battle Rifle Ballistic Cannon Battle Cannon Launcher Subdweller Shrapnel Launcher Build | -11 -10 -10 -10 ------- Run | Yrd Mat Min Sub Slots Evolved . | . . . . Power . | . . . . Propulsion . | . . . . Utility . | . . . . Weapon . | . . . . Parts Attached 6 | 2 . . 4 Power . | . . . . Engine . | . . . . Core . | . . . . Reactor . | . . . . Propulsion . | . . . . Treads . | . . . . Leg . | . . . . Wheel . | . . . . Hover . | . . . . Flight . | . . . . Utility 1 | . . . 1 Device . | . . . . Storage . | . . . . Processor . | . . . . Hackware . | . . . . Protection 1 | . . . 1 Artifact . | . . . . Weapon 5 | 2 . . 3 Energy Gun 1 | 1 . . . Energy Cannon . | . . . . Ballistic Gun 2 | 1 . . 1 Ballistic Cannon 1 | . . . 1 Launcher 1 | . . . 1 Special Weapon . | . . . . Impact Weapon . | . . . . Slashing Weapon . | . . . . Piercing Weapon . | . . . . Special Melee Weapon . | . . . . Unidentified Prototypes . | . . . . Parts Lost 3 | . . . 3 Power . | . . . . Propulsion . | . . . . Utility 1 | . . . 1 Weapon 2 | . . . 2 Highest Loss Streak 2 | . . . 2 To Critical Strikes . | . . . . Average Backups . | 1 . . . Power . | . . . . Propulsion . | . . . . Utility . | . . . . Weapon . | 1 . . . Tool/Special . | . . . . Unused Backups . | . . . . Power . | . . . . Propulsion . | . . . . Utility . | . . . . Weapon . | . . . . Tool/Special . | . . . . Average Slot Usage (%) 35 | . 28 28 37 Protection 7 | . . . 9 Energy Gun 5 | . 14 14 3 Ballistic Gun 13 | . 14 14 13 Ballistic Cannon 8 | . . . 10 Peak Build Rating 10 | 2 2 2 10 Average Rating 6 | . 2 2 7 On Entrance 1 | . 2 2 2 Naked Turns . | . . . . Heaviest Build 30 | 3 3 3 30 Greatest Support 3 | 3 3 3 3 Greatest Overweight (x) 9 | . . . 9 Average Overweight (x) 2 | . . . 3 Largest Inventory Capacity 5 | 5 5 5 5 Average Capacity 5 | 5 5 5 5 Most Carried 3 | 2 . . 3 Average Carried . | . . . . Final Capacity 5 | 5 5 5 5 Final Carried 1 | . . . 1 Class Distribution -------------------- 100% | Mutant Dominant Class ---------------- Mutant | -10/Materials Mutant | -10/Mines Mutant | -10/Subcaves Resources | -11 -10 -10 -10 ----------- Run | Yrd Mat Min Sub Matter Collected 335 | 192 38 . 105 Remotely . | . . . . Salvage Created 173 | . 5 41 127 Parts 16 | . . 6 10 Haulers Intercepted . | . . . . Recyclers Shooed . | . . . . Parts Field Recycled . | . . . . Retrieved Matter . | . . . . Parts Self-Destructed 6 | . . . 6 Prevented . | . . . . Kills | -11 -10 -10 -10 ------- Run | Yrd Mat Min Sub Combat Hostiles Destroyed 11 | . . 3 8 Guns 6 | . . 3 3 Cannons 1 | . . . 1 AOE 4 | . . . 4 Classes Destroyed 4 | . 1 1 2 Builder 1 | . 1 . . Turret 1 | . . . 1 Swarmer 7 | . . 3 4 Subdweller 4 | . . . 4 Best Kill Streak 5 | . 1 3 5 Combat Bots Only 4 | . . 3 4 Max Kills in Single Turn 2 | . 1 1 2 Gunslinging . | . . . . Exploded 2 | . . . 2 Melee . | . . . . Uniques/NPCs Destroyed . | . . . . Combat | -11 -10 -10 -10 -------- Run | Yrd Mat Min Sub Hostile Shots Fired 101 | . 8 9 84 Missed 30 | . . 4 26 Hits 71 | . 8 5 58 Projectile 71 | . 8 5 58 Critical Strikes 1 | . . . 1 Damage Taken 868 | . 131 41 696 Core 265 | . 78 . 187 Absorbed by Shields . | . . . . Core Remaining (%) 100 | 100 . . . Volleys Fired 57 | . 19 5 33 Largest 2 | . 2 2 2 Hottest 83 | . 70 70 83 Shots Fired 97 | . 38 10 49 Gun 83 | . 38 10 35 Cannon 8 | . . . 8 Launcher 6 | . . . 6 Special . | . . . . Kinetic 55 | . 19 5 31 Thermal 42 | . 19 5 18 Explosive . | . . . . Electromagnetic . | . . . . Robot Hit Streak 8 | . . 2 8 Robot Miss Streak 4 | . . 4 3 Penetration Max . | . . . . Secondary Targets 2 | . . 2 . Max Gunslinging Chain 1 | . . 1 . Shots Hit Robots 28 | . . 4 24 Core Hits 23 | . 1 3 19 Critical Kills . | . . . . Critical Parts Destroyed . | . . . . Critical Strikes 2 | . . . 2 Burn 2 | . . . 2 Melee Attacks . | . . . . Impact . | . . . . Slashing . | . . . . Piercing . | . . . . Sneak Attacks . | . . . . Combat Hostiles . | . . . . Follow-up Attacks . | . . . . Damage Inflicted 1061 | . 171 48 842 Guns 334 | . . 48 286 Cannons 80 | . . . 80 Explosions 647 | . 171 . 476 Melee . | . . . . Ramming . | . . . . Kinetic 702 | . . 10 692 Thermal 359 | . 171 38 150 Explosive . | . . . . Electromagnetic . | . . . . Impact . | . . . . Slashing . | . . . . Piercing . | . . . . Highest Corruption . | . . . . Average Corruption . | . . . . Corruption Purged . | . . . . Corruption Blocked . | . . . . Overload Shots . | . . . . Overflow Damage 51 | . 29 . 22 Projectiles . | . . . . Explosions 51 | . 29 . 22 Melee . | . . . . Knockbacks . | . . . . Impact . | . . . . Kinetic . | . . . . Secondary . | . . . . Self-Inflicted Damage 30 | . 30 . . Shots 1 | . 1 . . Rammed . | . . . . Targets Rammed . | . . . . Kicked . | . . . . Crushed . | . . . . Highest Temperature 49 | . 49 20 5 Average Temperature 21 | . 23 15 5 Received Heat Transfer 309 | . 54 . 255 Siege Activations . | . . . . Martial Activations . | . . . . Shielding Activations . | . . . . Robots Disrupted . | . . . . Combat Hostiles . | . . . . Robots Corrupted . | . . . . Combat Hostiles . | . . . . Parts Fried . | . . . . Impact Corruptions . | . . . . Robots Melted . | . . . . Combat Hostiles . | . . . . Parts Melted 1 | . . 1 . Heat Transferred 803 | . 100 111 592 Parts Sabotaged . | . . . . Parts Stolen . | . . . . Parts Stripped . | . . . . Power Chain Reactions . | . . . . Alert | -11 -10 -10 -10 ------- Run | Yrd Mat Min Sub Maximum Alert Level . | . . . . Low Security (%) 100 | 100 100 100 . Level 1 . | . . . . Level 2 . | . . . . Level 3 . | . . . . Level 4 . | . . . . Level 5 . | . . . . High Security . | . . . . Max Security . | . . . . Peak Influence 99 | . 99 96 . Initial 26 | . . 26 . Average 57 | . 53 72 . Influence Increases 314 | . 99 70 145 Destroy 0b10 Robot/C 160 | . . 60 100 Destroy 0b10 Robot/NC 5 | . 5 . . Destroy Leader 10 | . . 10 . Disable Machine 60 | . 60 . . Destroy Structure 34 | . 34 . . Lose Combat Pursuer 45 | . . . 45 Influence Decreases 205 | . 30 83 92 Entered New Map 73 | . . 43 30 Time Decay 112 | . 30 40 42 Lost Part 20 | . . . 20 Squads Dispatched 2 | . 2 . . Investigation . | . . . . Extermination . | . . . . Reinforcement 2 | . 2 . . Assault . | . . . . Garrison . | . . . . Intercept . | . . . . Searches Triggered . | . . . . Construction Impeded . | . . . . Haulers Reinforced . | . . . . Active Scanning Responses . | . . . . Cargo Convoy Interrupts . | . . . . Stealth | -11 -10 -10 -10 --------- Run | Yrd Mat Min Sub Distress Signals 1 | . 1 . . Communications Jammed . | . . . . Distress Signals . | . . . . Times Spotted 22 | . 9 2 11 Peak Tracking Total 7 | . 7 2 6 Tactical Retreats 2 | . . . 2 Traps | -11 -10 -10 -10 ------- Run | Yrd Mat Min Sub Traps Triggered . | . . . . Indirectly . | . . . . Trap Hack Attempts . | . . . . Triggered . | . . . . Disarmed . | . . . . Reprogrammed . | . . . . Reused . | . . . . Traps Extracted . | . . . . Installed . | . . . . Triggered . | . . . . Machines | -11 -10 -10 -10 ---------- Run | Yrd Mat Min Sub Machines Disabled 8 | . 4 . 4 Max in Single Turn 3 | . 3 . 2 Machines Repaired . | . . . . Machines Dismantled . | . . . . Machines Sabotaged . | . . . . Overloaded Fab Kills . | . . . . Hacking | -11 -10 -10 -10 --------- Run | Yrd Mat Min Sub Machines Accessed . | . . . . Terminals . | . . . . Fabricators . | . . . . Repair Stations . | . . . . Recycling Units . | . . . . Scanalyzers . | . . . . Garrison Access . | . . . . Total Hacks . | . . . . Successful . | . . . . Failed . | . . . . Catastrophic . | . . . . Database Lockouts . | . . . . Manual . | . . . . Terminals . | . . . . Fabricators . | . . . . Repair Stations . | . . . . Recycling Units . | . . . . Scanalyzers . | . . . . Garrison Access . | . . . . Terminal Hacks . | . . . . Fabricator Hacks . | . . . . Repair Station Hacks . | . . . . Recycling Unit Hacks . | . . . . Scanalyzer . | . . . . Garrison Access Hacks . | . . . . Unauthorized Hacks . | . . . . Terminals . | . . . . Fabricators . | . . . . Repair Stations . | . . . . Recycling Units . | . . . . Scanalyzers . | . . . . Garrison Access . | . . . . Data Cores Recovered . | . . . . Used . | . . . . Hacking Detections . | . . . . Full Trace Events . | . . . . Feedback Events . | . . . . Feedback Blocked . | . . . . Robot Schematics Acquired . | . . . . Robots Built . | . . . . Authchips . | . . . . Time . | . . . . Total Robot Build Rating . | . . . . Part Schematics Acquired . | . . . . Parts Built . | . . . . Authchips . | . . . . Time . | . . . . Total Part Build Rating . | . . . . Parts Repaired . | . . . . Time . | . . . . Parts Recycled . | . . . . Recycled Matter . | . . . . Retrieved Matter . | . . . . Retrieved Components . | . . . . Parts Scanalyzed . | . . . . Part Schematics Acquired . | . . . . Parts Damaged . | . . . . Bothacking | -11 -10 -10 -10 ------------ Run | Yrd Mat Min Sub Used RIF Installer . | . . . . Robots Hacked . | . . . . Non-combat . | . . . . Combat . | . . . . Robot Hacks Applied . | . . . . Relay Couplers Released . | . . . . Fabnet Peak Effective % . | . . . . Robots Rewired . | . . . . Allies Hacked . | . . . . Hacks Repelled . | . . . . Allies | -11 -10 -10 -10 -------- Run | Yrd Mat Min Sub Total Allies . | . . . . Largest Group . | . . . . Highest-Rated Group . | . . . . Highest-Rated Ally . | . . . . Total Orders . | . . . . Ally Attacks . | . . . . Total Damage . | . . . . Kills . | . . . . Allies Corrupted . | . . . . Allies Melted . | . . . . Intel | -11 -10 -10 -10 ------- Run | Yrd Mat Min Sub Active Infowar (turns) . | . . . . Robot Analysis Total . | . . . . Derelict Logs Recovered 1 | . . 1 . Drone Launches . | . . . . Drone Recoveries . | . . . . Exploration | -11 -10 -10 -10 ------------- Run | Yrd Mat Min Sub Turns Passed 939 | 18 83 93 745 Spaces Moved 415 | 27 59 48 281 Core 415 | 27 59 48 281 Treads . | . . . . Legs . | . . . . Wheels . | . . . . Hover . | . . . . Flight . | . . . . Fastest Speed 50 | 50 50 50 50 Average Speed 158 | 50 50 50 210 Slowest Speed 500 | 50 50 50 500 Overloaded Moves . | . . . . Propulsion Burnouts . | . . . . Robots Hopped . | . . . . Potential Cave-ins . | . . . . Cave-ins Triggered . | . . . . Exploration Rate (%) 15 | 3 21 15 24 Regions Visited 3 Branch Regions 2 Pre-discovered Areas . | . . . . Known Exits Taken . | . . . . Unknown Exits Taken 3 | 1 1 1 . Scrap Searched 2 | . . . 2 Spaces Dug 6 | . . . 6 Terrain Destroyed 79 | . 39 . 40 Melee . | . . . . Projectile . | . . . . AOE 79 | . 39 . 40 Terrain Rammed . | . . . . Walls Destroyed . | . . . . Machines Disabled . | . . . . Actions | -11 -10 -10 -10 --------- Run | Yrd Mat Min Sub Total 600 | 30 77 107 386 Wait 118 | . . 55 63 Move 412 | 26 58 47 281 Hop . | . . . . Pick Up 6 | 2 . . 4 Fast Attach . | . . . . Attach 5 | 2 . . 3 Detach . | . . . . Swap 2 | . . . 2 Drop . | . . . . Fire 57 | . 19 5 33 Melee . | . . . . Ram . | . . . . Kick . | . . . . Crush . | . . . . Escape Stasis . | . . . . Rewire . | . . . . Trap . | . . . . Miscellaneous . | . . . . Route ------- -11/Scrapyard -10/Materials -10/Mines -10/Subcaves History --------- Turn | Location | Event 5 | -11/Scrapyard | Discovered new exit (range 14) 19 | -11/Scrapyard | Entered Materials 98 | -10/Materials | Discovered new exit (range 9) 102 | -10/Materials | Entered Mines 124 | -10/Mines | Learned Materials terminal intel 191 | -10/Mines | Discovered new exit (range 5) 195 | -10/Mines | Entered Subcaves 196 | -10/Subcaves | Approached by a straggling Scientist 318 | -10/Subcaves | Build established: Mutant 346 | -10/Subcaves | Core integrity fell below 50% 700 | -10/Subcaves | Disturbed a concealed Subdweller 927 | -10/Subcaves | Core integrity fell below 20% 940 | -10/Subcaves | Destroyed by 9W-VDB(R) with Subdweller Machine Gun Last Messages --------------- Found 38 Matter. Acquired 22 matter. Searching scrap... Found Sub. Power Source. Found 66 Matter. Acquired Sub. Shrapnel Launcher. U0-7XK(c): "I think it's somewhere northeast of here" U0-7XK(c) destroyed. Critical hit (Destroy). S-10 Pest destroyed. Destroyed Flight Unit. Destroyed Lgt. Ion Engine. S-10 Pest destroyed. UU-1KA(R): "MADSUB!" Lgt. Ion Engine fries itself beyond repair. Scrap Shield destroyed. Autobeam Turret destroyed. Machine disabled. Sub. Shrapnel Launcher destroyed. Map ----- +----------------------------------------------------+ | ???????????????????????????????????????????????? | | ???????????????????????????????????????????????? | | ???????????????????????????????????????????????? | | ???????????????????????????????????????????????? | | ???????????????????????????????????????????????? | | ???????????????????????????????????????????????? | | ???????????????????????????????????????????????? | | ???????????????????????????????????????????????? | | ???????????????????????????????????????????????? | | ???????????????????????????? ??????????????????? | | ???????????????????????????? ????????????????? | | ???????????????????????????? ????????????????? | | ???????????????????????????? ????????????????? | | ?????????????????###??????? ?????????????????? | | ?????????????????# ??????? ?????????????????? | | ????????????????## ?????? #??????# ????????? | | ???????????????## ##????# #????? " ????????? | | ???????????????# ####?# #???? ???????? | | ???????????????# ### #???; ???????? | | ???????????????# ## ### ???????? | | ???????????????## # ;; ??????? | | ????????????????# ### ;;; ??????? | | ????????????????##??## ?????? | | ?????????????????????# ?????? | | ?????????????????????# ?????? | | ?????????????????##### @ *% ?####? | | ??????????????#### #### #? | | ??????????????#"%## # # ## | | ??????????????# *### | | ??????????????#%##[#< | | ??????????????# # & ] | | ??????????????#" ##< % #### | | ??????????????######## ####?# | | ?????????????????????## "" ##????### | | ??????????????????????## ""#####???????## | | ???????????????????????#R "#???????????## | | ??????????????????????# R ####???????????# | | ?????????????????????# ##??????????????## | | ?????????????????????# ##????????????????# | | ?????????????????????# ??????????????????# | | ????????????????????? #??????????????????## | | ???????????????????? ????????????????????# | | ???????????????????? ????????????????????# | | ???????????????????????????????????????????## | | ????????????????????????????????????????????## | | ?????????????????????????????????????????????### | | ???????????????????????????????????????????????? | | ???????????????????????????????????????????????? | | ???????????????????????????????????????????????? | | ???????????????????????????????????????????????? | +----------------------------------------------------+ Best States ------------- Heat Dissipation 25 Energy Generation 5 Energy Capacity 100 Matter Stores 300 Matter Capacity 300 Sight Range 16 Terrain Scan Density 10 Armor Coverage 800 Evasion (%) 50 Item Schematics ----------------- None Robot Schematics ------------------ None Fabricated ------------ Nothing Repaired ---------- Nothing Alien Tech Used ----------------- None Achievements -------------- None Challenges ------------ None Game ------ Seed SmallElectrostormSplitter Manual? 0 Play Time 00:06:48 Cumulative 89.5 hours Start 2025.08.15 @ 09:44:36 End 2025.08.15 @ 09:48:39 Sessions 1 Manual Loads 0 Difficulty Rogue Special Mode None Game No. 354 Rogue 354 Adventurer 0 Explorer 0 Win Type - Total 0 Types 0/0/0/0/0/0/0/0/0/0 Lore% 37 Gallery% 37 Achievement% 30 Wizard Run 0 Options --------- Layout 2 ASCII 0 Keyboard 0 Movement Mouse Keybinds 0 Fullscreen 2 Font 24/Smallcaps Map View 50x44 Zoom Use 0% Tactical HUD 0 Map Filters NONE Filters NONE Steam 1 RUN: ef865a7e-3444-4adf-9cbb-66e11b4b79e0